bitfinex-derivatives/quotes_ETHF0:USTF0_20250804
["timestamp","ask_amount","ask_price","bid_price","bid_amount"]
[1754326688117,22.38644,3689.5,3689.4,0.7656]
[1754326688314,22.73354,3689.5,3689.4,0.7656]
[1754326688512,22.73354,3689.5,3689.4,1.2895]
[1754326688713,22.38644,3689.5,3689.4,1.7958]
[1754326688907,22.38644,3689.5,3689.4,3.5475]
[1754326689917,21.0819,3689.5,3689.4,3.5475]
[1754326690118,19.062,3689.5,3689.4,3.5475]
[1754326690313,0.8943,3689.6,3689.5,2.92983]
[1754326690512,19.9513,3689.6,3689.5,3.99473]
[1754326690714,21.8018,3689.6,3689.5,3.99473]
[1754326690914,21.8018,3689.6,3689.5,3.4527]
[1754326691416,22.1228,3689.6,3689.5,0.7396]
[1754326692420,0.8943,3688.7,3688.6,0.9318]
[1754326692620,0.8943,3688.7,3688.6,1.2469]
[1754326692621,21.7988,3688.7,3688.6,1.2469]
[1754326693018,21.7988,3688.7,3688.6,2.8951]
[1754326693215,21.7988,3688.7,3688.6,3.4527]
[1754326693623,21.0268,3688.7,3688.6,3.4527]
[1754326694622,20.4373,3688.7,3688.6,3.4527]
[1754326694925,21.0268,3688.7,3688.6,3.4527]
[1754326695316,19.054,3688.7,3688.6,3.4527]
[1754326696718,21.7988,3688.7,3688.6,3.4527]
[1754326696919,21.7988,3688.7,3688.6,2.8951]
[1754326697319,21.7988,3688.7,3688.6,3.4527]
[1754326697821,21.7988,3688.7,3688.6,0.7396]
[1754326698521,25.3276,3688.7,3688.6,0.7396]
[1754326699127,0.54219,3688.4,3688.3,3.4527]
[1754326699328,22.33399,3688.4,3688.3,3.4527]
[1754326701323,21.0198,3688.4,3688.3,3.4527]
[1754326701525,19.047,3688.4,3688.3,3.4527]
[1754326701725,19.047,3688.4,3688.3,6.6605]
[1754326703723,21.7918,3688.4,3688.3,6.6605]
[1754326705230,21.0198,3688.4,3688.3,6.6605]
[1754326705535,19.047,3688.4,3688.3,6.6605]
[1754326706642,19.4449,3688.4,3688.3,6.6605]
[1754326706836,20.5308,3688.4,3688.3,6.6605]
[1754326707833,19.9413,3688.4,3688.3,6.6605]
[1754326709436,20.5308,3688.4,3688.3,6.6605]
[1754326710036,21.7918,3688.4,3688.3,6.6605]
[1754326710732,0.5422,3688.3,3688.1,0.7396]
[1754326710935,22.0988,3688.2,3688.1,0.7396]
[1754326711937,22.0988,3688.2,3688.1,1.2469]
[1754326712339,21.7778,3688.2,3688.1,2.5209]
[1754326712535,22.0988,3688.2,3688.1,1.7475]
[1754326712839,22.0988,3688.2,3688.1,1.2469]
[1754326713542,3.0658,3688.0,3687.9,0.97615206]
[1754326713733,22.0968,3688.0,3687.9,0.97615206]
[1754326715534,0.54223,3688.1,3687.9,3.09785206]
[1754326715840,0.9874,3688.1,3688.0,3.4527]
[1754326716043,19.029,3688.1,3688.0,3.4527]
[1754326716636,21.7738,3688.1,3688.0,2.1217]
[1754326716841,3.60805,3688.0,3687.9,1.71575206]
[1754326717235,3.28705,3688.0,3687.9,2.72365206]
[1754326717436,3.28705,3688.0,3687.9,3.87125206]
[1754326717641,3.28705,3688.0,3687.9,4.42885206]
[1754326718437,3.28705,3688.0,3687.9,3.87125206]
[1754326718637,3.28705,3688.0,3687.9,4.42885206]
[1754326719342,3.96802977,3688.0,3687.9,4.42885206]
[1754326720243,3.96802977,3688.0,3687.9,1.71575206]
[1754326720444,4.26162977,3688.0,3687.9,1.71575206]
[1754326720644,3.58065,3688.0,3687.9,1.71575206]
[1754326722146,3.58065,3688.0,3687.9,0.97615206]
[1754326724146,3.58065,3688.0,3687.9,3.11625206]
[1754326724147,22.30705,3688.0,3687.9,3.11625206]
[1754326724346,0.94015,3688.0,3687.9,4.39185206]
[1754326724742,0.54224,3688.1,3688.0,3.4157]
[1754326725044,19.018,3688.1,3688.0,3.4157]
[1754326725240,21.1126,3688.1,3688.0,3.4157]
[1754326725441,21.6486,3688.1,3688.0,3.4157]
[1754326726946,22.33016377,3688.1,3688.0,3.4157]
[1754326727147,20.54896377,3688.1,3688.0,3.4157]
[1754326727350,19.018,3688.1,3688.0,3.4157]
[1754326728050,19.3884,3688.1,3688.0,3.4157]
[1754326728350,19.9244,3688.1,3688.0,3.4157]
[1754326728647,19.3884,3688.1,3688.0,3.4157]
[1754326729348,19.018,3688.1,3688.0,3.4157]
[1754326730350,0.8494,3688.2,3688.1,1.90653]
[1754326730548,20.54199825,3688.2,3688.1,1.90653]
[1754326730947,3.17269,3689.1,3689.0,3.0392]
[1754326731148,22.86418612,3689.1,3689.0,3.4157]
[1754326731848,22.18269,3689.1,3689.0,3.4157]
[1754326732548,22.18269,3689.1,3689.0,2.4966]
[1754326732748,2.37994,3688.7,3688.6,3.95785]
[1754326732950,21.38894,3688.7,3688.6,3.4157]
[1754326733150,22.16444,3688.7,3688.6,3.4157]
[1754326734049,22.16444,3688.7,3688.6,1.7636]
[1754326734247,22.16444,3688.7,3688.6,1.29]
[1754326734452,22.44714,3688.7,3688.6,1.29]
[1754326736747,22.16444,3688.7,3688.6,2.8731]
[1754326736945,22.16444,3688.7,3688.6,3.4157]
[1754326737947,22.16444,3688.7,3688.6,0.7758]
[1754326738152,22.44714,3688.7,3688.6,0.7758]
[1754326738747,0.9314,3688.3,3688.2,1.7208]
[1754326738948,21.6113,3688.3,3688.2,2.8731]
[1754326739145,18.998,3688.3,3688.2,3.4157]
[1754326739452,21.6113,3688.3,3688.2,3.4157]
[1754326740152,21.6113,3688.3,3688.2,2.8731]
[1754326742150,22.96684,3688.3,3687.9,0.97615206]
[1754326742359,6.36335,3688.0,3687.9,3.61605206]
[1754326742652,25.35635,3688.0,3687.9,3.61605206]
[1754326742853,25.35635,3688.0,3687.9,4.39185206]
[1754326744057,25.63905,3688.0,3687.9,0.97615206]
[1754326744557,25.63905,3688.0,3687.9,1.75195206]
[1754326744954,25.35635,3688.0,3687.9,2.99915206]
[1754326745258,25.35635,3688.0,3687.9,3.47275206]
[1754326745555,25.35635,3688.0,3687.9,3.84925206]
[1754326746655,25.35635,3688.0,3687.9,3.47275206]
[1754326746853,25.63905,3688.0,3687.9,2.73975206]
[1754326747053,25.63905,3688.0,3687.9,1.75195206]
[1754326748254,25.35635,3688.0,3687.9,3.47275206]
[1754326748559,25.35635,3688.0,3687.9,4.39185206]
[1754326750658,25.34835,3688.0,3687.9,4.39185206]
[1754326751263,26.02850648,3688.0,3687.9,4.39185206]
[1754326751965,26.02850648,3688.0,3687.9,3.84925206]
[1754326752464,26.02850648,3688.0,3687.9,4.40685206]
[1754326755964,26.02450648,3688.0,3687.9,4.40685206]
[1754326756565,25.34435,3688.0,3687.9,4.40685206]
[1754326757863,24.56885,3688.0,3687.9,4.40685206]
[1754326758264,25.29735,3688.0,3687.9,4.40685206]
[1754326758866,6.31635,3688.0,3687.9,4.40685206]
[1754326759059,25.29135,3688.0,3687.9,4.40685206]
[1754326759259,3.75005,3688.0,3687.9,3.84925206]
[1754326759556,22.1818,3688.0,3687.9,4.40685206]
[1754326760560,0.54222,3688.2,3688.1,1.3584]
[1754326760862,19.51622,3688.2,3688.1,3.425]
[1754326761260,22.06602,3688.2,3688.1,3.425]
[1754326761964,22.06602,3688.2,3688.1,1.2325]
[1754326762359,22.06602,3688.2,3688.1,2.483]
[1754326762666,22.06602,3688.2,3688.1,2.8674]
[1754326763058,22.06602,3688.2,3688.1,3.425]
[1754326766975,22.06602,3688.2,3688.1,1.2325]
[1754326767177,22.33262,3688.2,3688.1,1.2325]
[1754326767475,23.01254636,3688.2,3688.1,1.2325]
[1754326767872,23.01254636,3688.2,3688.1,1.973]
[1754326768376,23.01254636,3688.2,3687.9,2.20865206]
[1754326768377,3.09204,3688.0,3687.9,2.20865206]
[1754326768674,25.94276636,3688.0,3687.9,2.94915206]
[1754326769072,25.94276636,3688.0,3687.9,1.74465206]
[1754326769266,25.94276636,3688.0,3687.0,1.916]
[1754326769267,0.54238,3687.1,3687.0,1.916]
[1754326769467,19.50338,3687.1,3687.0,2.6565]
[1754326769866,19.50338,3687.1,3687.0,3.425]
[1754326770476,0.4266,3686.9,3686.8,0.464]
[1754326770778,25.26001,3686.9,3686.8,2.6845]
[1754326771070,25.26001,3686.9,3686.8,3.425]
[1754326772871,25.26001,3686.9,3686.8,2.8674]
[1754326773272,25.52661,3686.9,3686.8,1.2325]
[1754326773671,0.5425,3686.3,3686.1,3.2078]
[1754326773878,18.957,3686.2,3686.1,6.6328]
[1754326774078,19.3184,3686.2,3686.1,6.6328]
[1754326774268,19.8592,3686.2,3686.1,6.6328]
[1754326774677,21.5068,3686.2,3686.1,2.8674]
[1754326775082,21.5068,3686.2,3686.1,3.07926816]
[1754326775687,21.5068,3686.2,3686.1,1.95436816]
[1754326775885,21.5068,3686.2,3686.1,2.69486816]
[1754326776485,21.5068,3686.2,3686.1,1.95436816]
[1754326776784,21.7734,3686.2,3686.1,1.44436816]
[1754326777283,21.5068,3686.2,3686.1,1.44436816]
[1754326777487,21.5068,3686.2,3686.1,3.07926816]
[1754326777877,21.5068,3686.2,3686.1,3.63686816]
[1754326778289,21.5068,3686.2,3686.1,3.425]
[1754326779977,0.5425,3686.3,3686.2,1.2981]
[1754326780288,3.75021,3686.9,3686.8,3.3243]
[1754326780582,25.20531,3686.9,3686.8,2.7758]
[1754326780785,25.20531,3686.9,3686.8,3.3243]
[1754326782583,24.09811,3686.9,3686.8,3.3243]
[1754326782779,24.09811,3686.9,3686.1,3.2078]
[1754326782780,23.9497,3686.9,3686.1,3.2078]
[1754326782985,0.54251,3686.2,3686.1,5.2618]
[1754326783290,18.951,3686.2,3686.1,5.4731619]
[1754326783592,18.951,3686.2,3686.1,6.7434619]
[1754326786391,18.951,3686.2,3686.1,5.4731619]
[1754326786595,21.4531,3686.2,3686.1,6.7434619]
[1754326787087,19.3049,3686.2,3686.1,6.7434619]
[1754326787494,18.948,3686.2,3686.1,6.7434619]
[1754326789091,20.3429,3686.2,3686.1,3.5356619]
[1754326789292,21.4501,3686.2,3686.1,3.5356619]
[1754326789898,21.4461,3686.2,3686.1,3.5356619]
[1754326793196,0.5425,3686.3,3686.1,4.0781819]
[1754326793398,3.0446,3686.3,3686.2,3.5356619]
[1754326793699,21.9856,3686.3,3686.2,3.5356619]
[1754326793895,21.9856,3686.3,3686.2,2.9871619]
[1754326794099,25.1934,3686.3,3686.2,2.1472619]
[1754326794301,25.4402,3686.3,3686.2,0.21179848]
[1754326795100,25.4402,3686.3,3686.2,0.93519848]
[1754326795298,22.2324,3686.3,3686.2,0.93519848]
[1754326795501,25.4402,3686.3,3686.2,0.93519848]
[1754326795800,25.4402,3686.3,3686.2,0.21179848]
[1754326796002,25.4402,3686.3,3686.2,0.93519848]
[1754326796400,22.2324,3686.3,3686.2,0.21179848]
[1754326796698,25.4402,3686.3,3686.2,0.93519848]
[1754326797095,25.4402,3686.3,3686.2,0.7234]
[1754326797300,25.4402,3686.3,3686.2,0.93544158]
[1754326798099,25.1934,3686.3,3686.2,3.53634158]
[1754326798296,25.1934,3686.3,3686.2,2.64004158]
[1754326798500,25.4402,3686.3,3686.2,0.93544158]
[1754326800301,25.4402,3686.3,3686.2,0.7234]
[1754326800497,4.1072,3686.3,3686.2,2.98828146]
[1754326800700,4.1072,3686.3,3686.2,3.53678146]
[1754326800900,19.4775,3686.3,3686.2,3.3243]
[1754326801201,0.54246,3686.6,3686.5,0.4907]
[1754326801405,18.934,3686.6,3686.5,2.69690887]
[1754326801707,1.46325,3687.3,3687.2,1.3306]
[1754326801904,21.26625,3687.3,3687.2,0.93590887]
[1754326802103,22.65771622,3687.3,3687.2,1.42660887]
[1754326802406,0.67926622,3687.3,3687.2,3.53680887]
[1754326802599,3.2078,3688.0,3687.9,1.3306]
[1754326802796,22.1408,3688.0,3687.9,3.3243]
[1754326803100,22.1408,3688.0,3687.9,3.53672808]
[1754326803606,22.2853,3688.0,3687.9,0.21242808]
[1754326803901,22.2853,3688.0,3687.9,0.70312808]
[1754326803902,25.4931,3688.0,3687.9,0.70312808]
[1754326804107,25.4931,3688.0,3687.9,3.53672808]
[1754326804407,0.54225,3688.1,3688.0,3.3243]
[1754326804610,21.37355,3688.1,3688.0,3.53672808]
[1754326804795,22.08575,3688.1,3688.0,3.53672808]
[1754326805295,22.82755,3688.1,3688.0,0.21242808]
[1754326806002,22.82755,3688.1,3688.0,0.93582808]
[1754326806206,19.47425,3688.1,3688.0,3.53672808]
[1754326806507,20.80955,3688.1,3688.0,3.53672808]
[1754326806699,22.08575,3688.1,3688.0,3.53672808]
[1754326806898,3.15375,3688.1,3688.0,3.53672808]
[1754326807098,22.08075,3688.1,3688.0,3.53672808]
[1754326807303,21.36855,3688.1,3688.0,3.53672808]
[1754326807505,19.46925,3688.1,3688.0,3.53672808]
[1754326807900,0.54225,3688.1,3688.0,3.53672808]
[1754326808104,19.46925,3688.1,3688.0,3.53672808]
[1754326808411,0.54222,3688.2,3688.1,3.3243]
[1754326808707,0.54222,3688.2,3688.1,3.53672808]
[1754326808708,20.32952,3688.2,3688.1,3.53672808]
[1754326809306,20.89352,3688.2,3688.1,3.53672808]
[1754326809702,20.32952,3688.2,3688.1,3.53672808]
[1754326809902,21.36752,3688.2,3688.1,3.53672808]
[1754326810097,22.07972,3688.2,3688.1,2.98822808]
[1754326810302,22.79722,3688.2,3688.1,2.98822808]
[1754326810804,22.79722,3688.2,3688.1,3.50222808]
[1754326811301,22.79722,3688.2,3688.1,8.08e-06]
[1754326811502,1.84731,3687.6,3687.5,2.7208]
[1754326811704,22.71791,3687.6,3687.5,3.2348]
[1754326813402,3.2546,3687.0,3686.9,1.6633]
[1754326813598,22.1736,3687.0,3686.9,3.2348]
[1754326814405,21.4561,3687.0,3686.9,3.2348]
[1754326816408,0.54248,3686.4,3686.3,3.6846]
[1754326816609,21.99458,3686.4,3686.3,4.5341]
[1754326816809,22.71208,3686.4,3686.3,2.0098]
[1754326817008,0.54262,3685.5,3685.4,3.2348]
[1754326817213,18.914,3685.5,3685.4,3.2348]
[1754326817709,0.54261,3685.6,3685.5,3.2348]
[1754326817902,0.54259,3685.7,3685.6,1.3263]
[1754326818106,0.54263,3685.4,3685.3,0.5]
[1754326818306,0.54263,3685.4,3685.3,3.7348]
[1754326818307,21.99373,3685.4,3685.3,3.7348]
[1754326819010,22.71123,3685.4,3685.3,3.2208]
[1754326820110,22.71123,3685.4,3685.3,0.5]
[1754326820318,21.27653,3685.4,3685.3,1.8263]
[1754326820511,21.99373,3685.4,3685.3,3.7348]
[1754326820719,21.27653,3685.4,3685.3,3.7348]
[1754326820916,20.27803,3685.4,3685.3,3.7348]
[1754326821211,3.2078,3685.5,3685.3,1.8263]
[1754326821513,0.5149,3685.7,3685.3,1.8263]
[1754326821514,0.54261,3685.6,3685.5,0.514]
[1754326821719,0.54259,3685.7,3685.5,3.2348]
[1754326821916,18.914,3685.6,3685.5,1.3263]
[1754326822413,1.305,3685.4,3685.3,1.8263]
[1754326822606,3.2546,3685.4,3685.3,3.0513]
[1754326822811,1.36403,3685.5,3685.4,2.5513]
[1754326823012,19.45563,3685.5,3685.4,3.2348]
[1754326823212,20.79193,3685.5,3685.4,3.2348]
[1754326823408,20.27703,3685.5,3685.4,3.2348]
[1754326823612,18.913,3685.5,3685.4,3.2348]
[1754326823823,18.915,3685.5,3685.4,1.3263]
[1754326824123,18.914,3685.5,3685.4,1.3263]
[1754326824709,18.914,3685.5,3685.4,3.2348]
[1754326825013,0.54261,3685.6,3685.5,1.1975]
[1754326825321,19.45661,3685.6,3685.5,3.2348]
[1754326825522,21.99371,3685.6,3685.5,3.2348]
[1754326826619,1.84763,3685.4,3685.3,1.6878]
[1754326826923,3.07973,3685.4,3685.3,3.7348]
[1754326827116,3.79723,3685.4,3685.3,0.5]
[1754326827618,3.79723,3685.4,3685.3,1e-05]
[1754326827619,1.84763,3685.4,3685.3,1e-05]
[1754326827826,22.70923,3685.4,3685.3,1e-05]
[1754326828622,3.79723,3685.4,3685.3,0.47681]
[1754326828815,22.70823,3685.4,3685.3,2.03731]
[1754326829017,20.75863,3685.4,3685.3,1e-05]
[1754326830820,20.75863,3685.4,3684.9,0.97694677]
[1754326830821,1.38868,3685.0,3684.9,0.22574677]
[1754326831118,24.02338,3685.0,3684.9,0.22574677]
[1754326831324,24.9497368,3685.0,3684.9,0.22574677]
[1754326831520,24.4070568,3685.0,3683.8,3.2078]
[1754326831822,0.54282,3684.1,3684.0,2.047]
[1754326832017,19.45582,3684.1,3684.0,2.047]
[1754326832427,21.53392,3684.1,3684.0,2.047]
[1754326832619,2.62092,3684.1,3683.6,0.514]
[1754326832926,2.62098,3683.7,3683.6,2.047]
[1754326833118,21.53298,3683.7,3683.6,2.047]
[1754326833720,20.81578,3683.7,3683.6,2.047]
[1754326833921,21.53298,3683.7,3683.6,2.047]
[1754326835026,0.54294,3683.3,3683.2,2.047]
[1754326835221,19.45394,3683.3,3683.2,2.047]
[1754326835823,19.45394,3683.3,3683.2,2.5238]
[1754326836025,19.91294,3683.3,3683.2,3.2348]
[1754326836425,21.27384,3683.3,3683.2,3.2348]
[1754326836627,21.99104,3683.3,3683.2,3.2348]
[1754326837532,0.54302,3682.8,3682.7,3.2348]
[1754326837824,5.05572,3683.4,3683.3,1.3263]
[1754326838030,23.96772,3683.4,3683.3,1.3263]
[1754326838328,25.19982,3683.4,3683.3,3.2348]
[1754326838627,25.91732,3683.4,3683.3,3.2348]
[1754326838929,25.91732,3683.4,3683.3,2.7208]
[1754326839729,25.91732,3683.4,3683.3,2.0373]
[1754326839930,25.91732,3683.4,3683.3,1.5618]
[1754326840125,1.35735,3683.3,3682.6,3.2078]
[1754326840335,3.03402,3682.8,3682.7,3.3002]
[1754326840527,21.94602,3682.8,3682.7,3.3002]
[1754326842526,21.26799,3682.3,3682.2,3.3002]
[1754326842934,1.2609,3682.1,3682.0,1.8322]
[1754326843224,2.35701,3682.1,3682.0,1.8322]
[1754326843429,0.99101,3682.1,3682.0,1.8322]
[1754326843735,0.4479,3682.1,3682.0,3.3002]
[1754326844432,18.911,3682.1,3682.0,3.3002]
[1754326845431,5.0217,3683.1,3683.0,1.2979]
[1754326845631,5.0217,3683.1,3683.0,3.3002]
[1754326845632,20.1739,3683.1,3683.0,3.3002]
[1754326845932,19.7248,3683.1,3683.0,3.3002]
[1754326846130,20.7269,3683.1,3683.0,3.3002]
[1754326846330,21.404,3683.1,3683.0,3.3002]
[1754326846527,1.80391,3682.8,3682.7,1.8322]
[1754326846734,3.03406,3682.5,3682.4,3.2078]
[1754326846932,3.0341,3682.2,3682.1,3.3002]
[1754326847233,0.54306,3682.5,3682.4,3.3002]
[1754326847438,3.8849,3683.1,3683.0,2.5652]
[1754326847728,3.03403,3682.7,3682.6,3.3002]
[1754326847933,20.7249,3682.7,3682.6,3.3002]
[1754326848122,18.912,3682.7,3682.6,0.834]
[1754326848326,18.912,3682.7,3682.6,3.3002]
[1754326848532,1.80403,3682.0,3681.9,3.54494277]
[1754326848731,3.73643,3682.0,3681.9,2.65334277]
[1754326848931,3.73643,3682.0,3681.9,0.97774277]
[1754326849127,6.94423,3682.0,3681.9,0.97774277]
[1754326850125,2.35703,3682.0,3681.9,4.27794277]
[1754326850330,3.03413,3682.0,3681.9,4.27794277]
[1754326850725,6.24193,3682.0,3681.9,0.97774277]
[1754326850923,6.94423,3682.0,3681.9,0.97774277]
[1754326851328,25.85723,3682.0,3681.9,0.97774277]
[1754326851724,22.66393,3682.0,3681.9,4.27794277]
[1754326852432,25.15493,3682.0,3681.9,3.01064277]
[1754326852632,22.66393,3682.0,3681.9,4.27794277]
[1754326852835,3.75093,3682.0,3681.9,4.27794277]
[1754326853034,0.54312,3682.1,3681.9,3.54494277]
[1754326853335,0.54312,3682.1,3682.0,3.3002]
[1754326853539,19.45509,3682.3,3682.0,3.3002]
[1754326853736,0.54311,3682.2,3682.1,1.2979]
[1754326854036,1.91057,3682.7,3682.1,1.2979]
[1754326854037,0.54303,3682.7,3682.3,0.54307]
[1754326854334,3.7508,3682.9,3682.8,1.2979]
[1754326854529,0.543,3682.9,3682.8,3.3002]
[1754326855239,0.54299,3683.0,3682.8,1.2979]
[1754326855438,0.54299,3683.0,3682.9,3.3002]
[1754326856437,19.45498,3683.1,3682.9,3.3002]
[1754326856734,19.45498,3683.1,3683.0,3.3002]
[1754326856932,18.912,3683.1,3683.0,3.3002]
[1754326857529,0.54296,3683.2,3683.1,2.8363]
[1754326857741,0.54295,3683.3,3683.2,1.9447]
[1754326857933,0.54295,3683.3,3683.2,3.3002]
[1754326859438,3.03395,3683.3,3683.2,3.3002]
[1754326859738,0.54295,3683.3,3683.2,3.3002]
[1754326860246,1.21577895,3683.4,3683.3,3.3002]
[1754326860434,0.54291,3683.5,3683.3,4.5057]
[1754326860637,0.54291,3683.5,3683.4,3.3002]
[1754326860836,0.67282995,3683.5,3683.4,3.3002]
[1754326861037,0.67282995,3683.6,3683.5,3.3002]
[1754326861339,0.54289,3683.7,3683.6,2.7659]
[1754326861538,0.54289,3683.7,3683.6,3.3002]
[1754326862030,1.3794,3684.4,3683.8,3.3002]
[1754326862031,0.67301377,3684.1,3683.8,3.3002]
[1754326862238,0.67301377,3684.1,3683.9,3.84304]
[1754326862239,0.54283,3684.1,3683.9,3.84304]
[1754326862432,0.54283,3684.1,3684.0,3.3002]
[1754326862740,0.54281,3684.2,3684.1,3.3002]
[1754326862935,0.54279,3684.3,3684.2,2.0309]
[1754326863142,1.2158055,3684.3,3684.2,3.3002]
[1754326863341,0.54277,3684.5,3684.3,1.84069]
[1754326863535,1.21555255,3684.8,3684.7,3.3002]
[1754326863843,0.54271,3684.9,3684.8,3.3002]
[1754326864045,1.21554255,3684.9,3684.8,3.3002]
[1754326864344,0.67283255,3685.2,3685.1,1.2979]
[1754326864639,0.67283255,3685.2,3685.1,3.3002]
[1754326865038,1.93373255,3685.2,3684.6,3.9408]
[1754326865236,0.54273,3684.8,3684.7,2.7659]
[1754326865544,0.54273,3684.8,3684.7,0.735]
[1754326865740,0.54273,3684.8,3684.7,3.3002]
[1754326867542,0.54277,3684.4,3684.3,2.4086]
[1754326867739,3.03377,3684.4,3684.3,3.3002]
[1754326868646,0.54277,3684.4,3684.3,3.3002]
[1754326868944,0.54277,3684.5,3684.4,3.3002]
[1754326869149,0.99057,3685.1,3685.0,0.9406]
[1754326869336,1.54357,3685.1,3685.0,1.2979]
[1754326869539,3.03367,3685.1,3685.0,1.2979]
[1754326869846,3.73597,3685.1,3685.0,1.2979]
[1754326870041,3.73597,3685.1,3685.0,0.4639]
[1754326870246,3.0173,3684.9,3684.8,3.2424]
[1754326870442,3.74853,3684.7,3684.6,1.862]
[1754326870647,0.54272,3684.8,3684.6,1.2986]
[1754326870839,0.54272,3684.8,3684.7,3.1785]
[1754326871044,1.50967,3685.1,3685.0,0.4865]
[1754326871238,1.81317,3685.1,3685.0,1.9965]
[1754326871442,3.74847,3685.1,3685.0,2.6741]
[1754326871652,3.01727,3685.1,3685.0,3.1785]
[1754326871842,1.86447,3685.1,3685.0,3.1785]
[1754326872144,0.54259,3685.7,3685.6,1.2986]
[1754326872349,1.36039,3685.7,3685.6,3.1785]
[1754326872547,1.36039,3685.7,3685.0,3.2078]
[1754326872548,0.89746,3685.2,3685.1,3.1785]
[1754326872746,1.86446,3685.2,3685.1,3.1785]
[1754326872954,3.01726,3685.2,3685.1,3.1785]
[1754326873155,2.31716,3685.2,3685.1,3.1785]
[1754326873646,3.01726,3685.2,3685.1,3.1785]
[1754326874041,3.74846,3685.2,3685.1,3.1785]
[1754326874850,3.01726,3685.2,3685.1,3.1785]
[1754326876062,1.36046,3685.2,3685.1,3.1785]
[1754326876549,0.8178,3685.2,3685.1,3.1785]
[1754326876752,3.01717,3685.8,3685.7,3.1785]
[1754326876943,3.2078,3686.0,3685.7,3.1785]
[1754326877146,1.35621,3686.4,3685.9,2.3436]
[1754326877344,3.01713,3686.1,3686.0,3.1785]
[1754326877647,3.74844,3685.3,3685.2,1.2986]
[1754326878054,0.54264,3685.4,3685.2,3.1785]
[1754326878353,0.54264,3685.4,3685.3,3.1785]
[1754326878746,1.50964,3685.4,3685.3,3.1785]
[1754326878942,1.96234,3685.4,3685.3,3.1785]
[1754326879147,3.74844,3685.4,3685.3,2.6741]
[1754326879949,3.01727,3685.1,3685.0,3.1785]
[1754326880156,3.74847,3685.1,3685.0,2.6741]
[1754326880353,3.01727,3685.1,3685.0,3.1785]
[1754326881052,3.01731,3684.9,3684.8,1.9762]
[1754326881252,2.31721,3684.9,3684.8,3.1785]
[1754326882248,0.5427,3685.0,3684.8,3.72121]
[1754326882446,0.967,3685.3,3685.2,3.1785]
[1754326882653,1.50964,3685.3,3685.2,3.1785]
[1754326883753,1.00564,3685.3,3685.2,3.1785]
[1754326884147,0.54264,3685.4,3685.3,1.2023]
[1754326884351,0.54264,3685.4,3685.3,3.1785]
[1754326885152,3.01724,3685.4,3685.3,3.1785]
[1754326885452,1.9353,3685.4,3684.9,0.54269]
[1754326885752,2.4746,3685.1,3685.0,1.2986]
[1754326886059,2.4746,3685.4,3685.3,3.1785]
[1754326886259,3.2058,3685.4,3685.3,2.6741]
[1754326886455,0.9157,3685.2,3685.1,0.6979]
[1754326886767,2.4746,3685.2,3685.1,3.1785]
[1754326886955,1.7745,3685.2,3685.1,3.1785]
[1754326887155,1.2705,3685.2,3685.1,2.4806]
[1754326887358,1.59747,3685.8,3685.7,0.4816]
[1754326887554,1.2705,3686.3,3686.2,1.2986]
[1754326887759,0.67335912,3686.4,3686.2,3.1785]
[1754326887954,0.67335912,3686.5,3686.4,1.2986]
[1754326888160,0.54246,3686.6,3686.4,3.1785]
[1754326888358,0.54246,3686.6,3686.5,3.1785]
[1754326888563,1.81296,3686.6,3686.5,3.1785]
[1754326888759,3.01706,3686.6,3686.5,3.1785]
[1754326888965,2.4746,3686.6,3686.5,3.1785]
[1754326889759,39.8232,3686.9,3686.8,1.2986]
[1754326889760,39.092,3686.9,3686.8,1.2986]
[1754326889962,1.3218,3686.9,3686.8,3.1785]
[1754326890463,0.463,3687.1,3687.0,3.1785]
[1754326890762,0.967,3687.1,3687.0,3.1785]
[1754326890958,1.3218,3687.1,3687.0,3.1785]
[1754326891158,19.42537,3687.2,3687.0,3.1785]
[1754326891159,18.883,3687.2,3687.0,3.72088]
[1754326891462,18.883,3687.2,3687.1,3.1785]
[1754326892260,2.31686,3687.3,3687.2,3.1785]
[1754326892464,0.54241,3686.9,3686.7,3.2078]
[1754326892665,2.54411,3686.9,3686.8,1.51]
[1754326893064,1.81291,3686.9,3686.8,3.1785]
[1754326893866,2.31691,3686.9,3686.8,3.1785]
[1754326894069,1.7745,3686.9,3686.8,3.1785]
[1754326895061,3.2058,3686.9,3686.8,3.1785]
[1754326895270,3.2058,3686.9,3686.8,1.9965]
[1754326895575,2.4746,3686.9,3686.8,3.1785]
[1754326896162,3.2058,3686.9,3686.8,2.6741]
[1754326896470,3.2058,3686.9,3686.8,1.1844]
[1754326896671,3.2058,3686.9,3686.8,0.6979]
[1754326896861,1.2705,3686.6,3686.5,3.1785]
[1754326897169,2.4746,3686.6,3686.5,3.1785]
[1754326897366,3.2058,3686.6,3686.5,2.6741]
[1754326897560,3.2058,3686.6,3686.5,1.9965]
[1754326897763,1.2705,3686.3,3686.2,3.1785]
[1754326897960,2.4746,3686.3,3686.2,3.1785]
[1754326898362,3.2078,3687.0,3686.5,0.54246]
[1754326898363,0.54245,3686.7,3686.5,0.54246]
[1754326898664,0.54245,3686.7,3686.2,6.3863]
[1754326898665,0.54244,3686.7,3686.6,1.3165]
[1754326898864,6.49911,3687.0,3686.2,3.2078]
[1754326898865,0.99519,3686.4,3686.3,1.8571]
[1754326899070,1.2705,3686.4,3686.3,3.1785]
[1754326899273,0.8178,3686.4,3686.3,3.1785]
[1754326899472,2.4746,3686.4,3686.3,2.6741]
[1754326899973,1.7745,3686.4,3686.3,3.1785]
[1754326900474,0.54245,3686.6,3686.5,1.84946]
[1754326900676,0.5393,3686.7,3686.5,1.84945]